{"text_format":"1","workbook":"xlsx","n_sheets":12,"sheets":["計算シート","源泉徴収シート","入力のしかた（計算シート①）","入力のしかた（計算シート②）","入力のしかた（源泉徴収シート）","扶養申告書","基配所申告書","保険申告書","住借申告書","源泉徴収簿","配偶者","各種申告書・参考情報"],"not_rendered":{"charts":0,"images":6,"macros":1,"external_links":1,"defined_names":37,"comments":0,"pivot_tables":0},"unopened":[],"bounds":{"document_bytes":16777216,"sheet_cells":100000,"rows_first":2000,"rows_last":500,"rows_between":2000,"halvings":0,"cell_chars":16384,"cell_head_chars":4096},"cells_cut":0,"cells_raw":0,"read":"whole","date_system":"1900"}

{"sheet":"計算シート","index":0,"n_rows":61,"n_cols":48,"rows_kept":61,"cut":false,"hidden":false,"merged":[[31,28,31,29],[32,28,32,29],[12,0,42,0],[30,19,30,26],[34,19,34,26],[35,19,35,26],[12,1,12,10],[12,11,12,17],[12,18,12,26],[41,5,41,17],[42,5,42,17],[21,21,21,24],[36,1,40,4],[39,5,40,8],[41,1,42,4],[18,18,19,26],[16,18,16,26],[33,1,33,17],[33,19,33,26],[41,19,41,26],[28,19,28,26],[24,18,24,26],[26,18,26,26],[33,28,33,29],[6,21,6,22],[6,23,6,26],[10,8,10,9],[26,12,26,17],[28,12,28,17],[29,19,29,26],[27,12,27,17],[40,19,40,26],[34,1,34,17],[36,19,36,26],[37,19,37,26],[38,19,38,26],[39,19,39,26],[37,5,37,17],[38,5,38,17],[39,9,39,17],[31,1,31,17],[31,19,31,26],[24,1,24,10],[25,1,25,10],[32,1,32,17],[32,19,32,26],[26,1,26,10],[27,1,27,10],[5,20,5,22],[5,14,5,19],[15,19,15,26],[7,2,7,6],[8,2,8,6],[15,12,15,17],[10,21,10,22],[23,21,23,24],[20,18,20,19],[21,18,21,19],[22,20,22,25],[7,8,7,9],[7,10,7,13],[5,23,5,26],[8,21,8,22],[8,23,8,26],[9,14,9,19],[5,10,5,13],[21,3,21,10],[22,1,22,10],[19,1,21,2],[19,3,19,10],[15,1,15,10],[20,12,20,17],[0,0,1,26],[6,8,6,9],[6,10,6,13],[7,21,7,22],[7,23,7,26],[10,14,10,19],[6,1,6,6],[7,14,7,19],[6,14,6,19],[10,1,10,6],[9,21,9,22],[9,23,9,26],[8,8,8,9],[2,0,3,3],[5,1,5,6],[2,4,2,12],[8,10,8,13],[10,10,10,13],[5,0,10,0],[3,4,3,12],[2,13,3,14],[2,15,3,21],[9,2,9,6],[5,7,5,9],[28,1,28,10],[10,28,10,30],[16,1,16,10],[16,12,16,17],[18,1,18,10],[19,28,19,33],[13,12,13,17],[14,1,14,10],[14,12,14,17],[16,28,16,30],[13,19,13,26],[13,1,13,10],[14,19,14,26],[11,1,11,26],[21,28,21,29],[21,12,21,17],[22,12,22,17],[20,20,20,25],[20,3,20,10],[23,1,23,10],[42,19,42,26],[8,14,8,19],[30,1,30,17],[29,28,29,29],[30,28,30,29],[34,28,34,29],[28,28,28,29],[27,21,27,24],[40,9,40,17],[29,1,29,17],[9,8,9,9],[9,10,9,13],[17,19,17,25],[23,12,23,17],[24,12,24,17],[25,12,25,17],[17,12,17,17],[18,12,18,17],[19,12,19,17],[25,21,25,24],[10,23,10,26],[17,1,17,10],[36,5,36,17],[35,1,35,17]]}
["年末調整計算シート（令和６年用）"]
[]
["(フリガナ）\n氏　　名",null,null,null,null,null,null,null,null,null,null,null,null,"備考"]
[]
[]
["扶養控除及び障害者控除等の控除額","区分",null,null,null,null,null,"人数（人）",null,null,"控除額（円）",null,null,null,"区分",null,null,null,null,null,"人数（人）",null,null,"控除額（円）"]
[null,"控除対象扶養親族\nの人数",null,null,null,null,null,"Ⓐ",null,null,{"$f":"IF(I7=\"\",\"\",I7*380000)","v":""},null,null,null,"同居特別障害者以外\nの特別障害者の人数",null,null,null,null,null,"Ⓕ",null,null,{"$f":"IF(V7=\"\",\"\",V7*400000)","v":""},null,null,null,null,"B～C計",{"$f":"SUM(I8:J10)","v":0}]
[null,null,"特定扶養親族の人数",null,null,null,null,"Ⓑ",null,null,{"$f":"IF(I8=\"\",\"\",I8*250000)","v":""},null,null,null,"同居特別障害者の人数",null,null,null,null,null,"Ⓖ",null,null,{"$f":"IF(V8=\"\",\"\",V8*750000)","v":""},null,null,null,null,"特定扶養",{"$f":"I7-I9-I10","v":0},"同居老親以外",{"$f":"I7-I8-I9","v":0}]
[null,null,"同居老親等の人数",null,null,null,null,"Ⓒ",null,null,{"$f":"IF(I9=\"\",\"\",I9*200000)","v":""},null,null,null,"寡婦の該当",null,null,null,null,null,"Ⓗ",null,null,{"$f":"IF(V9=\"\",\"\",V9*270000)","v":""},null,null,null,null,"同居老親",{"$f":"I7-I8-I10","v":0},null,null,null,"寡婦","ひとり親"]
[null,null,"同居老親等以外の\n老人扶養親族の人数",null,null,null,null,"Ⓓ",null,null,{"$f":"IF(I10=\"\",\"\",I10*100000)","v":""},null,null,null,"ひとり親の該当",null,null,null,null,null,"Ⓘ",null,null,{"$f":"IF(V10=\"\",\"\",V10*350000)","v":""},null,null,null,null,"控除額合計",null,null,null,null,{"$f":"V9","v":0},{"$f":"V10","v":0}]
[null,"一般の障害者の人数",null,null,null,null,null,"Ⓔ",null,null,{"$f":"IF(I11=\"\",\"\",I11*270000)","v":""},null,null,null,"勤労学生の該当",null,null,null,null,null,"Ⓙ",null,null,{"$f":"IF(V11=\"\",\"\",V11*270000)","v":""},null,null,null,null,{"$f":"SUM(K7,K8,K9,K10,K11,X7,X8,X9,X10,X11)","v":0}]
[]
["年  末  調  整","区分",null,null,null,null,null,null,null,null,null,"金額（円）",null,null,null,null,null,null,"税額（円）"]
[null,"給料・手当等",null,null,null,null,null,null,null,null,null,"①",null,null,null,null,null,null,"③",null,null,null,null,null,null,null,null,null,"①欄",{"$f":"M14","v":0}]
[null,"賞与等",null,null,null,null,null,null,null,null,null,"④",null,null,null,null,null,null,"⑥",null,null,null,null,null,null,null,null,null,"④欄",{"$f":"M15","v":0}]
[null,"計",null,null,null,null,null,null,null,null,null,"⑦",{"$f":"SUM(M14:R15)","v":0},null,null,null,null,null,"⑧",{"$f":"SUM(T14:AA15)","v":0},null,null,null,null,null,null,null,null,"給与所得控除後の計算①"]
[null,"給与所得控除後の給与等の金額",null,null,null,null,null,null,null,null,null,"⑨",{"$f":"IF(AC17<=550999,0,\nIF(AC17<=1618999,AC17-550000,\nIF(AC17<=1619999,AC17*60%+97600,\nIF(AC17<=1621999,AC17*60%+98000,\nIF(AC17<=1623999,AC17*60%+98800,\nIF(AC17<=1627999,AC17*60%+99600,\nIF(AC17<=1799999,AC17*60%+100000,\nIF(AC17<=3599999,AC17*70%-80000,\nIF(AC17<=6599999,AC17*80%-440000,\nIF(AC17<=8499999,ROUNDDOWN(AC17*90%-1100000,0),\nIF(AC17<=20000000,AC17-1950000,\"\")))))))))))","v":0},null,null,null,null,null,"所得金額調整控除の適用の有無",null,null,null,null,null,null,null,null,null,{"$f":"IF(M16<=1618999,M16,\nIF(M16<=1619999,M16-MOD(M16-1619000,1000),\nIF(M16<=1623999,M16-MOD(M16-1620000,2000),\nIF(M16<=6599999,M16-MOD(M16-1624000,4000),\nIF(M16<=20000000,M16,\"\")))))","v":0}]
[null,"所得金額調整控除額",null,null,null,null,null,null,null,null,null,"⑩",{"$f":"IF(AND(T18=\"有\",M16>8500000),AC20,0)","v":0},null,null,null,null,null,"【",null,null,null,null,null,null,null,"】"]
[null,"給与所得控除後の給与等の金額（調整控除後）",null,null,null,null,null,null,null,null,null,"⑪",{"$f":"IFERROR(M17-M18,\"\")","v":0},null,null,null,null,null,{"$f":"IF(AND(M25>0,V22=\"\"),\"「配偶者の合計所得金額」を入力してください。\",IF(AND(AP22=10,M25>0),\"「配偶者の合計所得金額」と「配偶者（特別）控除額（⑰欄）」の金額が対応していません。受理した配偶者控除等申告書の内容を確認してください。\",\"\"))","v":""},null,null,null,null,null,null,null,null,null,"有","無"]
[null,"社会保険料等控除額",null,"給与等からの控除分",null,null,null,null,null,null,null,"⑫",null,null,null,null,null,null,null,null,null,null,null,null,null,null,null,null,{"$f":"IF(ROUNDUP((M16-8500000)*0.1,0)>150000,150000,ROUNDUP((M16-8500000)*0.1,0))","v":-850000}]
[null,null,null,"申告による社会保険料の控除分",null,null,null,null,null,null,null,"⑬",null,null,null,null,null,null,{"$f":"IF(S19=\"\",\"\",\"↓\")","v":""},null,"配偶者の合計所得金額",null,null,null,null,null,null,null,null,null,null,"区分１","区分２","区分３","区分４","区分５","区分６","区分７","区分８","区分９","区分１０"]
[null,null,null,"申告による小規模企業共済等掛金の控除分",null,null,null,null,null,null,null,"⑭",null,null,null,null,null,null,{"$f":"IF(S19=\"\",\"\",\"詳細は　  こちら\")","v":""},null,"（",null,null,null,null,"円）",null,null,{"$f":"IF(V22=\"\",\"区分０\",IF(V22<=480000,\"区分１\",IF(V22<=950000,\"区分２\",IF(V22<=1000000,\"区分３\",IF(V22<=1050000,\"区分４\",IF(V22<=1100000,\"区分５\",IF(V22<=1150000,\"区分６\",IF(V22<=1200000,\"区分７\",IF(V22<=1250000,\"区分８\",IF(V22<=1300000,\"区分９\",IF(V22<=1330000,\"区分１０\",\"対象外\")))))))))))","v":"区分０"},null,null,{"$f":"IF(AND($AC$22=AG30,OR($M$25=480000,$M$25=380000,$M$25=320000,$M$25=260000,$M$25=160000,$M$25=130000)),\"\",\"×\")","v":"×"},{"$f":"IF(AND($AC$22=AH30,OR($M$25=380000,$M$25=260000,$M$25=130000)),\"\",\"×\")","v":"×"},{"$f":"IF(AND($AC$22=AI30,OR($M$25=360000,$M$25=240000,$M$25=120000)),\"\",\"×\")","v":"×"},{"$f":"IF(AND($AC$22=AJ30,OR($M$25=310000,$M$25=210000,$M$25=110000)),\"\",\"×\")","v":"×"},{"$f":"IF(AND($AC$22=AK30,OR($M$25=260000,$M$25=180000,$M$25=90000)),\"\",\"×\")","v":"×"},{"$f":"IF(AND($AC$22=AL30,OR($M$25=210000,$M$25=140000,$M$25=70000)),\"\",\"×\")","v":"×"},{"$f":"IF(AND($AC$22=AM30,OR($M$25=160000,$M$25=110000,$M$25=60000)),\"\",\"×\")","v":"×"},{"$f":"IF(AND($AC$22=AN30,OR($M$25=110000,$M$25=80000,$M$25=40000)),\"\",\"×\")","v":"×"},{"$f":"IF(AND($AC$22=AO30,OR($M$25=60000,$M$25=40000,$M$25=20000)),\"\",\"×\")","v":"×"},{"$f":"IF(AND($AC$22=AP30,OR($M$25=30000,$M$25=20000,$M$25=10000)),\"\",\"×\")","v":"×"},{"$f":"COUNTIF(AF22:AO22,\"×\")","v":10}]
[null,"生命保険料の控除額",null,null,null,null,null,null,null,null,null,"⑮",null,null,null,null,null,null,"       ",null,"旧長期損害保険料支払額"]
[null,"地震保険料の控除額",null,null,null,null,null,null,null,null,null,"⑯",null,null,null,null,null,null,null,null,"（",null,null,null,null,"円）"]
[null,"配偶者（特別）控除額",null,null,null,null,null,null,null,null,null,"⑰",null,null,null,null,null,null,"⑫のうち小規模企業共済等掛金の金額"]
[null,"扶養控除額及び障害者等の控除額の合計額",null,null,null,null,null,null,null,null,null,"⑱",{"$f":"AC11","v":0},null,null,null,null,null,null,null,"（",null,null,null,null,"円）"]
[null,"基礎控除額",null,null,null,null,null,null,null,null,null,"⑲",null,null,null,null,null,null,"⑬のうち国民年金保険料等の金額",null,null,null,null,null,null,null,null,480000,320000,160000,0,"　"]
[null,"所得控除額の合計額",null,null,null,null,null,null,null,null,null,"⑳",{"$f":"SUM(M20:R27)","v":0},null,null,null,null,null,null,null,"（",null,null,null,null,"円）"]
[null,"差引課税給与所得金額及び算出所得税額",null,null,null,null,null,null,null,null,null,"㉑",{"$f":"IFERROR(IF(M19<M28,0,ROUNDDOWN(M19-M28,-3)),\"\")","v":0},null,null,null,null,null,"㉒",{"$f":"IFERROR(IF(M29>18000000,M29*0.4-2796000,IF(M29>9000000,M29*0.33-1536000,IF(M29>6950000,M29*0.23-636000,IF(M29>3300000,M29*0.2-427500,IF(M29>1950000,M29*0.1-97500,IF(M29<=1950000,M29*0.05,0)))))),\"\")","v":0},null,null,null,null,null,null,null,null,"配偶者控除"]
[null,"（特定増改築等）住宅借入金等特別控除額",null,null,null,null,null,null,null,null,null,null,null,null,null,null,null,null,"㉓",null,null,null,null,null,null,null,null,null,{"$f":"IF(V22=\"\",\"区分０\",IF(V22<=480000,\"区分１\",IF(V22<=950000,\"区分２\",IF(V22<=1000000,\"区分３\",IF(V22<=1050000,\"区分４\",IF(V22<=1100000,\"区分５\",IF(V22<=1150000,\"区分６\",IF(V22<=1200000,\"区分７\",IF(V22<=1250000,\"区分８\",IF(V22<=1300000,\"区分９\",IF(V22<=1330000,\"区分10\",\"対象外\")))))))))))","v":"区分０"},null,null,"区分0","区分１","区分２","区分３","区分４","区分５","区分６","区分７","区分８","区分９","区分１０"]
[null,"年調所得税額",null,null,null,null,null,null,null,null,null,null,null,null,null,null,null,null,"㉔",{"$f":"IFERROR(IF((T29-T30)<0,0,T29-T30),\"\")","v":0},null,null,null,null,null,null,null,null,null,null,null,480000,480000,380000,360000,310000,260000,210000,160000,110000,60000,30000,null,null,"最後のエラー"]
[null,"年調減税額",null,null,null,null,null,null,null,null,null,null,null,null,null,null,null,null,"㉔-2",null,null,null,null,null,null,null,null,null,null,null,null,380000,380000,260000,240000,210000,180000,140000,110000,80000,"-","-"]
[null,"年調減税額控除後の年調所得税額",null,null,null,null,null,null,null,null,null,null,null,null,null,null,null,null,"㉔-3",{"$f":"IFERROR(IF((T31-T32)<0,0,T31-T32),\"\")","v":0},null,null,null,null,null,null,null,null,null,null,null,360000,320000,130000,120000,110000,90000,70000,60000,40000,"-","-"]
[null,"控除外額",null,null,null,null,null,null,null,null,null,null,null,null,null,null,null,null,"㉔-4",{"$f":"IFERROR(IF((T32-T31)<0,0,T32-T31),\"\")","v":0},null,null,null,null,null,null,null,null,null,null,null,320000,260000,0,0,0,0,0,0,0,"-","-"]
[null,"年調年税額(「㉔-3」×１０２．１％)",null,null,null,null,null,null,null,null,null,null,null,null,null,null,null,null,"㉕",{"$f":"IFERROR(IF(AS35=\"×\",\"上のエラーメッセージを確認ください。\",ROUNDDOWN(T33*1.021,-2)),\"\")","v":0},null,null,null,null,null,null,null,null,null,null,null,310000,160000,"-","-","-","-","-","-","-",40000,20000,null,null,{"$f":"IF(S19=\"「配偶者の合計所得金額」と「配偶者（特別）控除額（⑰欄）」の金額が対応していません。受理した配偶者控除等申告書の内容を確認してください。\",\"×\",\"\")","v":""}]
[null,{"$f":"IF(OR(AND(T16=\"\",T35=\"\"),T16=T35),\"差引超過額又は不足額\",IF(T16<T35,\"差引不足額\",\"差引超過額\"))","v":"差引超過額又は不足額"},null,null,null,null,null,null,null,null,null,null,null,null,null,null,null,null,"㉖",{"$f":"IFERROR(ABS(T35-T16),\"\")","v":0},null,null,null,null,null,null,null,null,null,null,null,260000,130000,"-","-","-","-","-","-","-",20000,10000]
[null,"超過額の精算",null,null,null,"本年最後の給与から徴収する税額に充当する金額",null,null,null,null,null,null,null,null,null,null,null,null,"㉗",null,null,null,null,null,null,null,null,null,null,null,null,240000,0,"-","-","-","-","-","-","-",0,0," "]
[null,null,null,null,null,"未払給与に係る未徴収の税額に充当する金額",null,null,null,null,null,null,null,null,null,null,null,null,"㉘",null,null,null,null,null,null,null,null,null,null,null,null,210000," ","-","-","-","-","-","-","-","-","-"," "]
[null,null,null,null,null,"差引還付する税額",null,null,null,null,null,null,null,null,null,null,null,null,"㉙",{"$f":"IFERROR(IF(B36=\"差引超過額\",T36-T37-T38,\"\"),\"\")","v":""},null,null,null,null,null,null,null,null,null,null,null,180000," ","-","-","-","-","-","-","-","-","-"," "," "," "," "," "," "]
[null,null,null,null,null,"同上のうち",null,null,null,"本年中に還付する金額",null,null,null,null,null,null,null,null,"㉚",null,null,null,null,null,null,null,null,null,null,null,null,160000," ","-","-","-","-","-","-","-","-","-"," "," "," "," "," "," "]
[null,null,null,null,null,null,null,null,null,"翌年において還付する金額",null,null,null,null,null,null,null,null,"㉛",{"$f":"IFERROR(IF(B36=\"差引超過額\",T39-T40,\"\"),\"\")","v":""},null,null,null,null,null,null,null,null,null,null,null,140000," ","-","-","-","-","-","-","-","-","-"," "," "," "," "," "," "]
[null,"不足額の精算",null,null,null,"本年最後の給与から徴収する金額",null,null,null,null,null,null,null,null,null,null,null,null,"㉜",null,null,null,null,null,null,null,null,null,null,null,null,130000," ","-","-","-","-","-","-","-","-","-"," "," "," "," "," "," "]
[null,null,null,null,null,"翌年に繰り越して徴収する金額",null,null,null,null,null,null,null,null,null,null,null,null,"㉝",{"$f":"IFERROR(IF(B36=\"差引不足額\",T36-T42,\"\"),\"\")","v":""},null,null,null,null,null,null,null,null,null,null,null,120000," ","-","-","-","-","-","-","-","-","-"," "," "," "," "," "," "]
[null,null,null,null,null,null,null,null,null,null,null,null,null,null,null,null,null,null,null,null,null,null,null,null,null,null,null,null,null,null,null,110000," ","-","-","-","-","-","-","-","-","-"," "," "," "," "," "," "]
[null,null,null,null,null,null,null,null,null,null,null,null,null,null,null,null,null,null,null,null,null,null,null,null,null,null,null,null,null,null,null,90000," ","-","-","-","-","-","-","-","-","-"," "," "," "," "," "," "]
[null,null,null,null,null,null,null,null,null,null,null,null,null,null,null,null,null,null,null,null,null,null,null,null,null,null,null,null,null,null,null,80000," ","-","-","-","-","-","-","-","-","-"," "," "," "," "," "," "]
[null,null,null,null,null,null,null,null,null,null,null,null,null,null,null,null,null,null,null,null,null,null,null,null,null,null,null,null,null,null,null,70000," ","-","-","-","-","-","-","-","-","-"," "," "," "," "," "," "]
[null,null,null,null,null,null,null,null,null,null,null,null,null,null,null,null,null,null,null,null,null,null,null,null,null,null,null,null,null,null,null,60000," ","-","-","-","-","-","-","-","-","-"," "," "," "," "," "," "]
[null,null,null,null,null,null,null,null,null,null,null,null,null,null,null,null,null,null,null,null,null,null,null,null,null,null,null,null,null,null,null,40000," ","-","-","-","-","-","-","-","-","-"," "," "," "," "," "," "]
[null,null,null,null,null,null,null,null,null,null,null,null,null,null,null,null,null,null,null,null,null,null,null,null,null,null,null,null,null,null,null,30000," ","-","-","-","-","-","-","-","-","-"," "," "," "," "," "," "]
[null,null,null,null,null,null,null,null,null,null,null,null,null,null,null,null,null,null,null,null,null,null,null,null,null,null,null,null,null,null,null,20000," ","-","-","-","-","-","-","-","-","-"," "," "," "," "," "," "]
[null,null,null,null,null,null,null,null,null,null,null,null,null,null,null,null,null,null,null,null,null,null,null,null,null,null,null,null,null,null,null,10000," ","-","-","-","-","-","-","-","-","-"," "," "," "," "," "," "]
[null,null,null,null,null,null,null,null,null,null,null,null,null,null,null,null,null,null,null,null,null,null,null,null,null,null,null,null,null,null,null,0," ","-","-","-","-","-","-","-","-","-"," "," "," "," "," "," "]
[null,null,null,null,null,null,null,null,null,null,null,null,null,null,null,null,null,null,null,null,null,null,null,null,null,null,null,null,null,null,null,"-"," ","-","-","-","-","-","-","-","-","-"," "," "," "," "," "," "]
[null,null,null,null,null,null,null,null,null,null,null,null,null,null,null,null,null,null,null,null,null,null,null,null,null,null,null,null,null,null,null,"-",null,"-","-","-","-","-","-","-","-","-"," "," "," "," "," "," "]
[null,null,null,null,null,null,null,null,null,null,null,null,null,null,null,null,null,null,null,null,null,null,null,null,null,null,null,null,null,null,null,"-"," ","-","-","-","-","-","-","-","-","-"," "," "," "," "," "," "]
[null,null,null,null,null,null,null,null,null,null,null,null,null,null,null,null,null,null,null,null,null,null,null,null,null,null,null,null,null,null,null,"-"," ","-","-","-","-","-","-","-","-","-"," "," "," "," "," "," "]
[]
[null,null,null,null,null,null,null,null,null,null,null,null,null,null,null,null,null,null,null,null,null,null,null,null,null,null,null,null,null,null,null,null,null,"　"]
[null,null,null,null,null,null,null,null,null,null,null,null,null,null,null,null,null,null,null,null,null,null,null,null,null,null,null,null,null,null,null,null,null,"　"]
[null,null,null,null,null,null,null,null,null,null,null,null,null,null,null,null,null,null,null,null,null,null,null,null,null,null,null,null,null,null,null,null,null,"　"]

{"sheet":"源泉徴収シート","index":1,"n_rows":23,"n_cols":12,"rows_kept":23,"cut":false,"hidden":false,"merged":[[0,8,0,11],[15,1,19,1],[21,3,21,4],[22,7,22,9],[2,1,14,1],[21,1,21,2],[21,7,21,9]]}
[null,"源泉徴収シート"]
[null,"区分","月区分","支給月日","総支給金額","社会保険料等の控除額","社会保険料等控除後の給与等の金額","扶養親族等の数","算出税額","年末調整による過不足税額","月次減税額","差引徴収税額"]
[null,"給料・手当等",1,null,null,null,{"$f":"E3-F3","v":0},null,null,null,null,{"$f":"I3+J3-K3","v":0}]
[null,null,2,null,null,null,{"$f":"E4-F4","v":0},null,null,null,null,0]
[null,null,3,null,null,null,{"$f":"E5-F5","v":0},null,null,null,null,0]
[null,null,4,null,null,null,0,null,null,null,null,0]
[null,null,5,null,null,null,0,null,null,null,null,0]
[null,null,6,null,null,null,0,null,null,null,null,0]
[null,null,7,null,null,null,0,null,null,null,null,0]
[null,null,8,null,null,null,0,null,null,null,null,0]
[null,null,9,null,null,null,0,null,null,null,null,0]
[null,null,10,null,null,null,0,null,null,null,null,0]
[null,null,11,null,null,null,{"$f":"E13-F13","v":0},null,null,null,null,0]
[null,null,12,null,null,null,{"$f":"E14-F14","v":0},null,null,null,null,0]
[null,null,"計",null,{"$f":"SUM(E3:E14)","v":0},{"$f":"SUM(F3:F14)","v":0},{"$f":"SUM(G3:G14)","v":0},null,{"$f":"SUM(I3:I14)","v":0},{"$f":"SUM(J3:J14)","v":0},{"$f":"SUM(K8:K14)","v":0},{"$f":"SUM(L3:L14)","v":0}]
[null,"賞与等",{"$f":"IF(D16<>\"\",MONTH(D16),\"\")","v":""},null,null,null,{"$f":"E16-F16","v":0},null,null,null,null,{"$f":"I16+J16-K16","v":0}]
[null,null,{"$f":"IF(D17<>\"\",MONTH(D17),\"\")","v":""},null,null,null,0,null,null,null,null,{"$f":"I17+J17-K17","v":0}]
[null,null,{"$f":"IF(D18<>\"\",MONTH(D18),\"\")","v":""},null,null,null,0,null,null,null,null,{"$f":"I18+J18-K18","v":0}]
[null,null,"",null,null,null,{"$f":"E19-F19","v":0},null,null,null,null,{"$f":"I19+J19-K19","v":0}]
[null,null,"計",null,{"$f":"SUM(E16:E19)","v":0},{"$f":"SUM(F16:F19)","v":0},{"$f":"SUM(G16:G19)","v":0},null,0,0,{"$f":"SUM(K16:K19)","v":0},0]
[]
[null,"定額減税額",null,null,null,null,null,"定額減税控除済額",null,null,{"$f":"IFERROR(IF((K15+K20)>D22,D22,K15+K20),\"\")","v":0}]
[null,null,null,null,null,null,null,"控除外額",null,null,{"$f":"IFERROR(IF((D22-K22)<0,D22,D22-K22),\"\")","v":0}]

{"sheet":"入力のしかた（計算シート①）","index":2,"n_rows":50,"n_cols":5,"rows_kept":50,"cut":false,"hidden":false,"merged":[[0,4,0,5],[48,1,49,1],[48,2,48,3],[48,4,49,5],[49,2,49,3],[47,2,47,3],[47,4,47,5],[4,1,6,1],[4,4,6,5],[23,1,27,1],[4,2,4,3],[1,2,1,3],[1,4,1,5],[2,1,3,1],[2,2,2,3],[2,4,2,5],[7,1,8,1],[7,2,7,3],[7,4,7,5],[9,1,10,1],[9,2,9,3],[9,4,9,5],[11,1,12,1],[11,2,11,3],[11,4,12,5],[13,1,14,1],[13,2,13,3],[13,4,13,5],[28,1,30,1],[28,2,28,3],[28,4,30,5],[15,1,16,1],[15,2,19,3],[15,4,15,5],[17,1,22,1],[17,4,17,5],[21,4,21,5],[22,4,22,5],[23,2,23,3],[23,4,23,5],[25,4,25,5],[26,4,26,5],[43,2,45,3],[43,4,43,5],[31,1,36,1],[43,1,46,1],[31,2,33,3],[31,4,31,5],[37,1,42,1],[37,2,38,3],[37,4,37,5]]}
[null,null,null,null,"入力のしかた（計算シート①）"]
[null,"計算シートの\n該当欄等","用語の意味",null,"入力のしかた"]
[null,"控除対象扶養親族の人数【Ⓐ欄】","　「控除対象扶養親族」とは、扶養親族のうち、年齢16歳以上の人（平成21年１月１日以前に生まれた人）をいいます。",null,"　従業員から提出を受けた『扶養控除等（異動）申告書』の内容を確認し、そこに記載されている控除対象扶養親族の合計人数を入力してください。\n\n　（注）Ⓐ欄に入力した控除対象扶養親族の人数が、Ⓑ欄の特定扶養親族の人数・Ⓒ欄の同居老親等の人数・Ⓓ欄の同居老親等以外の老人扶養親族の人数の合計より少ない場合、エラーとなります。"]
[null,null,"　※「扶養親族」とは。",null,"　※ 申告書の該当箇所を見る。"]
[null,"扶養親族","　「扶養親族」とは、従業員と生計を一にする親族（配偶者、青色事業専従者として給与の支払を受ける人及び白色事業専従者を除きます。）で、合計所得金額が48万円以下の人をいいます。",null,"－"]
[null,null,"  ※「生計を一にする」とは。"]
[null,null,"  ※「合計所得金額」とは。"]
[null,"特定扶養親族の人数【Ⓑ欄】","　「特定扶養親族」とは、控除対象扶養親族のうち、年齢19歳以上23歳未満の人（平成14年１月２日から平成18年１月１日までの間に生まれた人）をいいます。",null,"　従業員から提出を受けた『扶養控除等（異動）申告書』の内容を確認し、そこに記載されている特定扶養親族の合計人数（申告書の「控除対象扶養親族」欄の「特定扶養親族」にチェックが付された人の合計人数）を入力してください。\n\n　（注）Ⓑ欄の特定扶養親族の人数・Ⓒ欄の同居老親等の人数・Ⓓ欄の同居老親等以外の老人扶養親族の人数の合計が、Ⓐ欄に入力した控除対象扶養親族の人数より多い場合、エラーとなります。"]
[null,null,"　※「控除対象扶養親族」とは。",null,"　※ 申告書の該当箇所を見る。"]
[null,"同居老親等の人数【Ⓒ欄】","　「同居老親等」とは、老人扶養親族のうち、従業員又はその配偶者（以下「従業員等」といいます。）の直系尊属（父母や祖父母などをいいます。）で従業員等のいずれかとの同居を常況としている人をいいます。",null,"　従業員から提出を受けた『扶養控除等（異動）申告書』の内容を確認し、そこに記載されている同居老親等の合計人数（申告書の「控除対象扶養親族」欄の「同居老親等」にチェックが付された人の合計人数）を入力してください。\n\n　（注）Ⓑ欄の特定扶養親族の人数・Ⓒ欄の同居老親等の人数・Ⓓ欄の同居老親等以外の老人扶養親族の人数の合計が、Ⓐ欄に入力した控除対象扶養親族の人数より多い場合、エラーとなります。\n　"]
[null,null,"　※「老人扶養親族」とは。",null,"　※ 申告書の該当箇所を見る。"]
[null,"老人扶養親族","　「老人扶養親族」とは、控除対象扶養親族のうち、年齢70歳以上の人（昭和30年１月１日以前に生まれた人）をいいます。",null,"－"]
[null,null,"　※「控除対象扶養親族」とは。"]
[null,"同居老親等以外の\n老人扶養親族の人数【Ⓓ欄】","　「同居老親等以外の老人扶養親族」とは、老人扶養親族のうち、同居老親等（従業員又はその配偶者（以下「従業員等」といいます。）の直系尊属（父母や祖父母などをいいます。）で従業員等のいずれかとの同居を常況としている人）以外の人をいいます。",null,"　従業員から提出を受けた『扶養控除等（異動）申告書』の内容を確認し、そこに記載されている同居老親等以外の老人扶養親族の合計人数（申告書の「控除対象扶養親族」欄の「その他」にチェックが付された人の合計人数）を入力してください。\n\n　（注）Ⓑ欄の特定扶養親族の人数・Ⓒ欄の同居老親等の人数・Ⓓ欄の同居老親等以外の老人扶養親族の人数の合計が、Ⓐ欄に入力した控除対象扶養親族の人数より多い場合、エラーとなります。"]
[null,null,"　※「老人扶養親族」とは。",null,"　※ 申告書の該当箇所を見る。"]
[null,"一般の障害者の人数【Ⓔ欄】","　「一般の障害者」又は「同居特別障害者以外の特別障害者」とは、従業員本人やその同一生計配偶者、扶養親族で、次のいずれかに該当する人（同居特別障害者に該当する人を除きます。）をいいます。\n⑴　精神上の障害により事理を弁識する能力を欠く常況にある人【これに該当する人は、全て特別障害者】\n⑵　児童相談所、知的障害者更生相談所、精神保健福祉センター又は精神保健指定医から知的障害者と判定された人【このうち、重度の知的障害者と判定された人は、特別障害者】\n⑶　精神保健及び精神障害者福祉に関する法律の規定により精神障害者保健福祉手帳の交付を受けている人【このうち、障害等級が１級の人は、特別障害者】\n⑷　身体障害者福祉法の規定により交付を受けた身体障害者手帳に、身体上の障害がある者として記載されている人【このうち、障害の程度が１級又は２級である者として記載されている人は、特別障害者】\n⑸　戦傷病者特別援護法の規定により戦傷病者手帳の交付を受けている人【このうち、障害の程度が恩給法別表第１号表ノ２の特別項症から第三項症までの人は、特別障害者】\n⑹　原子爆弾被爆者に対する援護に関する法律第１１条第１項の規定による厚生労働大臣の認定を受けている人【これに該当する人は、全て特別障害者】\n⑺　常に就床を要し、複雑な介護を要する人【これに該当する人は、全て特別障害者】\n⑻　精神又は身体に障害のある年齢65歳以上の人（昭和35年１月１日以前に生まれた人）で、その障害の程度が上記の⑴、⑵又は⑷に該当する人と同程度である人として市町村長、特別区の区長や福祉事務所長の認定を受けている人【このうち、上記の⑴、⑵又は⑷に掲げた特別障害者と同程度の障害のある人として市町村長等の認定を受けている人は、特別障害者】",null,"　従業員から提出を受けた『扶養控除等（異動）申告書』の内容を確認し、そこに記載されている一般の障害者の合計人数を入力してください。"]
[null,null,null,null,"　※ 申告書の該当箇所を見る。"]
[null,"同居特別障害者以外の特別障害者の人数【Ⓕ欄】",null,null,"　従業員から提出を受けた『扶養控除等（異動）申告書』の内容を確認し、そこに記載されている同居特別障害者以外の特別障害者（申告書の「特別障害者」）の合計人数を入力してください。"]
[null,null,null,null,"　※ 申告書の該当箇所を見る。"]
[]
[null,null,"　※「同一生計配偶者」とは。"]
[null,null,"　※「扶養親族」とは。"]
[null,null,"　※「同居特別障害者」とは。"]
[null,"同居特別障害者の人数【Ⓖ欄】","　　「同居特別障害者」とは、同一生計配偶者又は扶養親族のうち特別障害者に該当する人で、従業員、従業員の配偶者又は従業員と生計を一にするその他の親族のいずれかとの同居を常況としている人をいいます。",null,"　従業員から提出を受けた『扶養控除等（異動）申告書』の内容を確認し、そこに記載されている同居特別障害者の合計人数を入力してください。"]
[null,null,"　※「同一生計配偶者」とは。",null,"　※ 申告書の該当箇所を見る。"]
[null,null,"　※「扶養親族」とは。"]
[null,null,"　※「特別障害者」とは。"]
[null,null,"  ※「生計を一にする」とは。"]
[null,"同一生計配偶者","　「同一生計配偶者」とは、従業員と生計を一にする配偶者（青色事業専従者として給与の支払を受ける人及び白色事業専従者を除きます。）で、合計所得金額が48万円以下の人をいいます。",null,"－"]
[null,null,"  ※「生計を一にする」とは。"]
[null,null,"  ※「合計所得金額」とは。"]
[null,"寡婦の該当【Ⓗ欄】","　「寡婦」とは、　従業員本人が次の⑴、⑵のいずれかに該当する人をいいます（ひとり親に該当する人を除きます。）。\n⑴　夫と離婚した後婚姻をしていない人で、次のイ、ロ及びハのいずれにも該当する人\n　イ　扶養親族を有すること。\n　ロ　合計所得金額が５００万円以下であること。\n　ハ　その人と事実上婚姻関係と同様の事情にあると認められる人がいないこと。\n⑵ 　夫と死別した後婚姻をしていない人又は夫の生死の明らかでない人で、次のイ及びロのいずれにも該当する人\n　イ　合計所得金額が５００万円以下であること。\n　ロ　その人と事実上婚姻関係と同様の事情にあると認められる人がいないこと。",null,"　従業員から提出を受けた『扶養控除等（異動）申告書』の内容を確認し、そこに本人が寡婦に該当する旨が記載されている（申告書の「寡婦」にチェックがある）場合には「１」を入力してください。\n\n　（注）Ⓘ欄のひとり親に「１」を入力した場合、Ⓗ欄の寡婦に「１」を入力することはできません。"]
[null,null,null,null,"　※ 申告書の該当箇所を見る。"]
[]
[null,null,"　※「ひとり親」とは。"]
[null,null,"　※「扶養親族」とは。"]
[null,null,"  ※「合計所得金額」とは。"]
[null,"ひとり親の該当【Ⓘ欄】","　「ひとり親」とは、従業員本人が現に婚姻をしていない人又は配偶者の生死の明らかでない人で、次の⑴、⑵及び⑶のいずれにも該当する人をいいます。\n⑴ 　その人と生計を一にする子（他の人の同一生計配偶者又は扶養親族とされている人を除き、その年分の総所得金額、退職所得金額及び山林所得金額の合計額が４８万円以下の子に限ります。）を有すること。\n⑵　合計所得金額が５００万円以下であること。\n⑶　その人と事実上婚姻関係と同様の事情にあると認められる人がいないこと。",null,"　従業員から提出を受けた『扶養控除等（異動）申告書』の内容を確認し、そこに本人がひとり親に該当する旨が記載されている（申告書の「ひとり親」にチェックがある）場合には「１」を入力してください。\n\n　（注）Ⓗ欄の寡婦に「１」を入力した場合、Ⓘ欄のひとり親に「１」を入力することはできません。"]
[null,null,null,null,"　※ 申告書の該当箇所を見る。"]
[null,null,"  ※「生計を一にする」とは。"]
[null,null,"　※「同一生計配偶者」とは。"]
[null,null,"　※「扶養親族」とは。"]
[null,null,"  ※「合計所得金額」とは。"]
[null,"勤労学生の該当【Ⓙ欄】","　「勤労学生」とは、従業員本人が、次の⑴、⑵及び⑶のいずれにも該当する人をいいます。\n⑴　次に掲げる学校等の児童、生徒、学生又は訓練生であること。\n　①　学校教育法に規定する小学校、中学校、義務教育学校、高等学校、中等教育学校、特別支援学校、大学、高等専門学校\n　②　国、地方公共団体、学校法人、準学校法人、独立行政法人国立病院機構、独立行政法人労働者健康安全機構、日本赤十字社、商工会議所、健康保険組合、健康保険組合連合会、国民健康保険団体連合会、国家公務員共済組合連合会、社会福祉法人、宗教法人、一般社団法人、一般財団法人、医療事業を行う農業協同組合連合会、医療法人、文部科学大臣が定める基準を満たす専修学校又は各種学校（以下「専修学校等」といいます。）を設置する者の設置した専修学校等で、職業に必要な技術の教授をするなど一定の要件に該当する課程を履修させるもの\n　③　認定職業訓練を行う職業訓練法人で、一定の要件に該当する課程を履修させるもの\n⑵　合計所得金額が７５万円以下であること。\n⑶　合計所得金額のうち給与所得等以外の所得金額が１０万円以下であること。",null,"　従業員から提出を受けた『扶養控除等（異動）申告書』の内容を確認し、そこに本人が勤労学生に該当する旨が記載されている（申告書の勤労学生にチェックがある）場合には「１」を入力してください。"]
[null,null,null,null,"　※ 申告書の該当箇所を見る。"]
[]
[null,null,"  ※「合計所得金額」とは。"]
[null," 生計を一にする","　「生計を一にする」とは、日常の生活の資を共にすることをいいます。\n\n※必ずしも同居を要件とするものではありませんので、例えば、勤務、修学、療養等の都合上別居している場合であっても、余暇には起居を共にすることを常例としている場合や、常に生活費、学資金、療養費等の送金が行われている場合には、「生計を一にする」ものとして取り扱われます。",null,"－"]
[null,"合計所得金額","　「合計所得金額」とは、次の⑴と⑵の合計額に、退職所得金額、山林所得金額を加算した金額です。\n⑴　事業所得、不動産所得、給与所得、総合課税の利子所得・配当所得・短期譲渡所得及び雑所得の合計額\n（損益通算後の金額）\n⑵　総合課税の長期譲渡所得と一時所得の合計額（損益通算後の金額）の2分の1の金額\nただし、一定の繰越控除を受けている場合は、その適用前の金額をいいます。\n\n※申告分離課税の所得がある場合には、それらの所得金額（長（短）期譲渡所得については特別控除前の金額）の合計額を加算した金額です。\n\n",null,"－"]
[null,null,"  ※ 各所得の概要（国税庁ホームページへリンク）。"]

{"sheet":"入力のしかた（計算シート②）","index":3,"n_rows":44,"n_cols":4,"rows_kept":44,"cut":false,"hidden":false,"merged":[[15,1,16,1],[15,2,15,3],[1,2,1,3],[2,2,2,3],[4,2,4,3],[6,1,7,1],[6,2,6,3],[8,1,10,1],[8,2,8,3],[2,1,3,1],[4,1,5,1],[11,1,12,1],[11,2,11,3],[13,1,14,1],[13,2,13,3],[38,2,38,3],[39,2,39,3],[23,1,24,1],[23,2,23,3],[25,1,26,1],[25,2,25,3],[27,1,29,1],[27,2,27,3],[30,1,31,1],[30,2,30,3],[32,1,33,1],[32,2,32,3],[34,2,34,3],[34,1,37,1],[17,1,18,1],[17,2,17,3],[19,1,20,1],[19,2,19,3],[21,1,22,1],[21,2,21,3],[40,2,40,3],[41,2,41,3],[42,1,43,1],[42,2,42,3],[43,2,43,3]]}
[null,null,null,"入力のしかた（計算シート②）"]
[null,"計算シートの該当欄","入力のしかた"]
[null,"給料・手当等【①・③欄】","　令和６年分の毎月の給与の合計額を①欄に、その給与から徴収した税額の合計額を③欄に入力してください。\n\n　（注）年間の給与等の総額が2,000万円を超える場合、年末調整の対象とはなりません。このため、計算シート①欄と④欄の合計が2,000万円を超える入力はできません。"]
[null,null,"　※ 源泉徴収簿の該当箇所を見る。"]
[null,"賞与等【④・⑥欄】","　令和６年分の賞与の合計額を④欄に、その賞与から徴収した税額の合計額を⑥欄に入力してください。\n\n（注）年間の給与等の総額が2,000万円を超える場合、年末調整の対象とはなりません。このため、計算シート①欄と④欄の合計が2,000万円を超える入力はできません。"]
[null,null,"　※ 源泉徴収簿の該当箇所を見る。"]
[null,"所得金額調整控除の適用の有無","　従業員から提出を受けた『所得金額調整控除申告書』の記載内容を確認し、所得金額調整控除の適用の有無を入力（選択）してください。この欄の入力が漏れると、所得金額調整控除の適用が無いものとして税額が計算されるため、注意してください。"]
[null,null,"　※ 申告書の該当箇所を見る。"]
[null,"配偶者の合計所得金額","　従業員から提出を受けた『配偶者控除等申告書』の内容を確認し、そこに記載されている配偶者の合計所得金額の見積額（申告書の「配偶者の本年中の合計所得金額の見積額」）を入力してください。\n\n　（注１） 配偶者の合計所得金額の見積額が133万円を超える場合には、配偶者（特別）控除の適用を受けることはできないため、この欄の入力は不要です。\n　（注２）配偶者（特別）控除の金額は、従業員本人の合計所得金額と、配偶者の合計所得金額・年齢によって異なります。この計算シートにおいては、計算シート⑰欄に入力した配偶者（特別）控除額と、計算シート「配偶者の合計所得金額」欄に入力した金額との関係が正しくない場合に、エラーメッセージを表示しています。このため、従業員本人の合計所得金額や配偶者の年齢からの判定（エラーメッセージの表示）は行っていませんので、従業員から提出を受けた『配偶者控除等申告書』の記載内容を確認の上、計算シートの⑰欄及び「配偶者の合計所得金額」欄を入力してください。"]
[null,null,"　※ 申告書の該当箇所を見る。"]
[null,null,"　※ エラーメッセージについて。"]
[null,"旧長期損害保険料支払額","　従業員から提出を受けた『保険料控除申告書』の内容を確認し、従業員が本年中に支払った旧長期損害保険料の合計額（申告書の「Ⓐのうち旧長期損害保険料の金額の合計額」）を入力してください。"]
[null,null,"　※ 申告書の該当箇所を見る。"]
[null,"⑫のうち小規模企業共済等掛金の金額","　従業員に対し本年中に支払った給与等から控除した小規模企業共済等掛金の合計額を入力してください。"]
[]
[null,"⑬のうち国民年金保険料等の金額","　従業員から提出を受けた『保険料控除申告書』の内容を確認し、従業員が本年中に支払った国民年金の保険料又は国民年金基金の掛金の合計額を入力してください。"]
[null,null,"　※ 申告書の該当箇所を見る。"]
[null,"社会保険料等控除額のうち、給与等からの控除分【⑫欄】","　従業員に対し本年中に支払った給与等から控除した社会保険料の合計額を入力してください。"]
[]
[null,"社会保険料等控除額のうち、申告による社会保険料の控除分【⑬欄】","　従業員から提出を受けた『保険料控除申告書』の内容を確認し、従業員が本年中に支払った社会保険料の合計額（申告書の「社会保険料控除」欄の「合計（控除額）」）を入力してください。"]
[null,null,"　※ 申告書の該当箇所を見る。"]
[null,"社会保険料等控除額のうち、申告による小規模企業共済等掛金の控除分【⑭欄】","　従業員から提出を受けた『保険料控除申告書』の内容を確認し、従業員が本年中に支払った小規模企業共済等掛金の合計額（申告書の「小規模企業共済等掛金控除」欄の「合計（控除額）」）を入力してください。"]
[null,null,"　※ 申告書の該当箇所を見る。"]
[null,"生命保険料の控除額【⑮欄】","　従業員から提出を受けた『保険料控除申告書』の内容を確認し、生命保険料控除の控除額（申告書の「生命保険料控除額計（㋑＋㋺＋㋩）（最高120,000円）」）を入力してください。"]
[null,null,"　※ 申告書の該当箇所を見る。"]
[null,"地震保険料の控除額【⑯欄】","　従業員から提出を受けた『保険料控除申告書』の内容を確認し、地震保険料控除の控除額（申告書の「地震保険料控除額（最高50,000円）」）を入力してください。"]
[null,null,"　※ 申告書の該当箇所を見る。"]
[null,"配偶者（特別）控除額【⑰欄】","　従業員から提出を受けた『配偶者控除等申告書』の内容を確認し、配偶者控除の額又は配偶者特別控除の額を入力してください。\n\n　（注１）計算シートの入力においては、この欄より先に、右の「配偶者の合計所得金額」を入力してください。これにより、配偶者の所得金額等に応じた配偶者（特別）控除額がリストとして表示されますので、申告書に記載された控除額を選択してください。\n　（注２）配偶者（特別）控除の金額は、従業員本人の合計所得金額と、配偶者の合計所得金額・年齢によって異なります。この計算シートにおいては、計算シート⑰欄に入力した配偶者（特別）控除額と、計算シート「配偶者の合計所得金額」欄に入力した金額との関係が正しくない場合に、エラーメッセージを表示しています。従業員本人の合計所得金額や配偶者の年齢からの判定（エラーメッセージの表示）は行っていませんので、従業員から提出を受けた『配偶者控除等申告書』の記載内容を確認の上、計算シート⑰欄及び「配偶者の合計所得金額」欄を入力してください。"]
[null,null,"　※ 申告書の該当箇所を見る。"]
[null,null,"　※ エラーメッセージについて。"]
[null,"基礎控除額【⑲欄】","　従業員から提出を受けた『基礎控除申告書』の内容を確認し、基礎控除の額を入力（選択）してください。"]
[null,null,"　※ 申告書の該当箇所を見る。"]
[null,"（特定増改築等）住宅借入金等特別控除額【㉓欄】","　従業員から提出を受けた『住宅借入金等特別控除申告書』　の内容を確認し、（特定増改築等）住宅借入金等特別控除額を入力してください。\n\n 　（注）控除額は、従業員がその住宅を居住の用に供した年等に応じて定められており、最大60万円です。また、申告書にしたがい控除額を計算した結果100円未満の端数が生じた場合には、その端数を切り捨てます。"]
[null,null,"　※ 申告書の該当箇所を見る。"]
[null,"年調減税額【㉔-2欄】","　年末調整を行う時の現況における同一生計配偶者の有無及び扶養親族（いずれも居住者に限ります。）の人数を確認し、「本人30,000円」と「同一生計配偶者と扶養親族１人につき30,000円」との合計額を入力してください。\n\n　"]
[null,null,"　※「同一生計配偶者」とは。"]
[null,null,"　※「扶養親族」とは。"]
[null,null,"　※ 定額減税特設サイトを見る。"]
[null,"本年最後の給与から徴収する税額に充当する金額【㉗欄】","　差引超過額のうち、本年最後の給与から徴収する税額に充当する金額を入力してください。\n"]
[null,"未払給与に係る未徴収の税額に充当する金額【㉘欄】","　差引超過額のうち、未払給与に係る未徴収の税額に充当する金額を入力してください。\n\n"]
[null,"本年中に還付する金額【㉚欄】","　差引超過額のうち、本年中に還付する金額を入力してください。\n\n"]
[null,"本年最後の給与から徴収する金額【㉜欄】","　差引不足額のうち、本年最後の給与から徴収する金額を入力してください。\n\n"]
[null,"エラーメッセージ①\n　「『配偶者の合計所得金額』を入力してください。」\n\nエラーメッセージ②\n　「『配偶者の合計所得金額』と『配偶者（特別）控除額（⑰欄）』の金額が対応していません。受理した配偶者控除等申告書の内容を確認してください。」","　【エラーメッセージ①：「『配偶者の合計所得金額』を入力してください。」】\n　計算シート⑰欄が入力されているが、右の「配偶者の合計所得金額」欄が入力されていない場合には、「『配偶者の合計所得金額』を入力してください。」というエラーメッセージが表示されます。\n　従業員から提出を受けた『配偶者控除等申告書』の内容を確認し、「配偶者の合計所得金額」を入力してください。\n\n　【エラーメッセージ②：「『配偶者の合計所得金額』と『配偶者（特別）控除額（⑰欄）』の金額が対応していません。受理した配偶者控除等申告書の内容を確認してください。」】\n　計算シート⑰欄に入力した金額と、右の「配偶者の合計所得金額」の関係が対応しない場合に、「『配偶者の合計所得金額』と『配偶者（特別）控除額（⑰欄）』の金額が対応していません。受理した配偶者控除等申告書の内容を確認してください。」というエラーメッセージが表示されます。\n　従業員から提出を受けた『配偶者控除等申告書』の記載内容を再度確認し、正しい「配偶者（特別）控除の金額」や「配偶者の合計所得金額」を入力してください。\n\n　（注）配偶者（特別）控除の金額は、従業員本人の合計所得金額と、配偶者の合計所得金額・年齢によって異なります。この計算シートにおいては、計算シート⑰欄に入力した配偶者（特別）控除額と、計算シート「配偶者の合計所得金額」欄に入力した金額が対応しない場合に、エラーメッセージを表示しています。従業員本人の合計所得金額や配偶者の年齢からの判定（エラーメッセージの表示）は行っていませんので、従業員から提出を受けた『配偶者控除等申告書』の記載内容を確認の上、計算シート⑰欄及び「配偶者の合計所得金額」欄を入力してください。"]
[null,null,"　※　計算シート⑰欄と「配偶者の合計所得金額」欄の対応を見る。"]

{"sheet":"入力のしかた（源泉徴収シート）","index":4,"n_rows":22,"n_cols":4,"rows_kept":22,"cut":false,"hidden":false,"merged":[[1,2,1,3],[2,1,3,1],[2,2,2,3],[4,1,5,1],[4,2,4,3],[14,1,15,1],[16,1,19,1],[20,1,21,1],[6,1,7,1],[6,2,6,3],[8,1,9,1],[8,2,8,3],[10,1,11,1],[10,2,10,3],[12,1,13,1],[12,2,12,3],[20,2,20,3],[21,2,21,3],[14,2,14,3],[16,2,16,3]]}
[null,null,null,"入力のしかた（源泉徴収シート）"]
[null,"計算シートの該当欄等","入力のしかた"]
[null,"支給月日","　給料・手当・賞与等を支給した月日を入力してください。"]
[]
[null,"総支給金額","　支給月日に支給した給料・手当・賞与等の金額を入力してください。"]
[]
[null,"社会保険料等の控除額","　従業員等に対して支払った給与等から控除した社会保険料等の金額を入力してください。"]
[]
[null,"扶養親族等の数","　「扶養親族等の数」を入力してください。\n　"]
[null,null,"　※「扶養親族等の数」とは？"]
[null,"算出税額","　社会保険料等控除後の給与等の金額及び扶養親族等の数を基に、給与所得の源泉徴収税額表において該当する税額を入力してください。"]
[null,null,"　※ 源泉徴収税額表を見る。"]
[null,"年末調整による過不足税額","　年末調整によって生じた差引超過額は「マイナス」で、不足額は「プラス」で入力してください。"]
[]
[null,"月次減税額","　当月の算出税額に年末調整による過不足税額を加減算した税額（控除前税額）から控除する定額減税額を入力してください。\n\n（注）定額減税額欄に入力した金額を超える金額を入力すると「月次減税額が定額減税額を超過しています。」というエラーメッセージが表示されるため、「月次減税額」欄の合計が定額減税額を超過しない範囲の金額を入力してください。\n　"]
[null,null,"　※ 定額減税特設サイトを見る。"]
[null,"定額減税額","　令和６年６月１日以後最初に給与等を支払う時点の現況で次の合計額を入力してください。\n①　本人（居住者に限ります。）　30,000円\n②　同一生計配偶者又は扶養親族（いずれも居住者に限ります。）　１人につき30,000円\n\n（注）　最初に月次減税額を控除したときから同一生計配偶者又は扶養親族の人数に異動が生じた場合であっても、定額減税額は変更しません（異動があった場合は「計算シート」㉔-2「年調減税額」に異動後の人数に応じた定額減税額を入力します。）。"]
[null,null,"　※「同一生計配偶者」とは。"]
[null,null,"　※「扶養親族」とは。"]
[null,null,"　※ 定額減税特設サイトを見る。"]
[null,"扶養親族等の数","　「扶養親族等の数」とは、源泉控除対象配偶者と控除対象扶養親族（老人扶養親族又は特定扶養親族を含みます。）との合計数をいいます。また、給与等の支払を受ける人が、障害者（特別障害者を含みます。）、寡婦、ひとり親又は勤労学生に該当する場合には、これらの一に該当するごとに扶養親族等の数に１名を加算し、その人の同一生計配偶者や扶養親族（年齢16歳未満の人を含みます。）のうちに障害者（特別障害者を含みます。）又は同居特別障害者に該当する人がいる場合には、これらの一に該当するごとに扶養親族等の数に１人を加算した数を扶養親族等の数とします。"]
[null,null,"　※「扶養親族等の数」の説明（源泉徴収税額表）を見る。"]

{"sheet":"扶養申告書","index":5,"n_rows":0,"n_cols":0,"rows_kept":0,"cut":false,"hidden":false,"merged":[]}

{"sheet":"基配所申告書","index":6,"n_rows":0,"n_cols":0,"rows_kept":0,"cut":false,"hidden":false,"merged":[]}

{"sheet":"保険申告書","index":7,"n_rows":0,"n_cols":0,"rows_kept":0,"cut":false,"hidden":false,"merged":[]}

{"sheet":"住借申告書","index":8,"n_rows":0,"n_cols":0,"rows_kept":0,"cut":false,"hidden":false,"merged":[]}

{"sheet":"源泉徴収簿","index":9,"n_rows":0,"n_cols":0,"rows_kept":0,"cut":false,"hidden":false,"merged":[]}

{"sheet":"配偶者","index":10,"n_rows":0,"n_cols":0,"rows_kept":0,"cut":false,"hidden":false,"merged":[]}

{"sheet":"各種申告書・参考情報","index":11,"n_rows":23,"n_cols":3,"rows_kept":23,"cut":false,"hidden":false,"merged":[[10,0,11,0],[12,0,13,0],[1,0,2,1],[14,0,14,1],[4,0,5,0],[6,0,7,0],[8,0,9,0]]}
[]
["※　国税庁ホームページに掲載している各種申告書や参考となる情報を一覧にしています。\n　　必要な情報をクリックしていただくと、国税庁ホームページの該当ページをご確認いただけます。",null,"アップ時は隠すこと"]
[]
["○","　各種申告書","アドレス"]
[1,"令和５年分　給与所得者の扶養控除等（異動）申告書","https://www.nta.go.jp/taxes/tetsuzuki/shinsei/annai/gensen/pdf/r5bun_01.pdf"]
[null,"令和５年分　給与所得者の扶養控除等（異動）申告書（入力用）","https://www.nta.go.jp/taxes/tetsuzuki/shinsei/annai/gensen/pdf/r5bun_01_input.pdf"]
[2,"令和５年分　給与所得者の基礎控除申告書 兼 給与所得者の配偶者控除等申告書 兼 所得金額調整控除申告書","2023bun_06.pdf (nta.go.jp)"]
[null,"令和５年分　給与所得者の基礎控除申告書 兼 給与所得者の配偶者控除等申告書 兼 所得金額調整控除申告書（入力用）","https://www.nta.go.jp/taxes/tetsuzuki/shinsei/annai/gensen/pdf/2023bun_06_input.pdf"]
[3,"令和５年分　給与所得者の保険料控除申告書","https://www.nta.go.jp/taxes/tetsuzuki/shinsei/annai/gensen/pdf/2023bun_04.pdf"]
[null,"令和５年分　給与所得者の保険料控除申告書（入力用）","https://www.nta.go.jp/taxes/tetsuzuki/shinsei/annai/gensen/pdf/2023bun_04_input.pdf"]
[4,"令和６年分　源泉徴収簿","r5bun_03.pdf (nta.go.jp)"]
[null,"令和６年分　源泉徴収簿（入力用）","https://www.nta.go.jp/taxes/tetsuzuki/shinsei/annai/gensen/pdf/r5bun_03_input.pdf"]
[5,"令和６年分　給与所得者の扶養控除等（異動）申告書","https://www.nta.go.jp/taxes/tetsuzuki/shinsei/annai/gensen/pdf/2024bun_01.pdf"]
[null,"令和６年分　給与所得者の扶養控除等（異動）申告書（入力用）","nta.go.jp/taxes/tetsuzuki/shinsei/annai/gensen/pdf/2024bun_01_input.pdf"]
["上記以外の様式や記載例については　　　　　からご確認ください。"]
[]
["○　参考情報"]
[1,"令和５年分　年末調整のしかた","https://www.nta.go.jp/publication/pamph/gensen/nencho2023/01.htm"]
[2,"年末調整チェック表","https://www.nta.go.jp/publication/pamph/gensen/nencho2023/pdf/26.pdf"]
[3,"年末調整Q＆A","27.pdf (nta.go.jp)"]
[4,"所得税徴収高計算書（納付書）の記載方法","https://www.nta.go.jp/publication/pamph/gensen/nencho2023/pdf/13.pdf"]
[5,"令和５年分　給与所得の源泉徴収票等の法定調書の作成と提出の手引","https://www.nta.go.jp/publication/pamph/hotei/tebiki2023/index.htm"]
[6,"定額減税特設サイト"]